{"text_format":"3","workbook":"xlsx","n_sheets":4,"sheets":["COVER SHEET","2. TRANSACTION FEE OFFSITE ","4. MANAGEMENT FEE OFFSITE","Price Declaration "],"not_rendered":{"images":2,"external_links":1,"defined_names":78},"read":"whole","date_system":"1900"}

{"sheet":"COVER SHEET","index":0,"n_rows":45,"n_cols":10,"rows_kept":45,"merged":[[1,9,1,11],[13,0,13,12],[16,4,16,11],[18,4,18,11],[20,4,20,11],[23,0,23,12],[25,0,25,12],[26,0,26,12],[27,0,27,12],[28,0,28,12],[29,0,29,12],[30,0,30,12],[31,0,31,12],[32,0,32,12],[33,0,33,12],[34,0,34,12],[35,0,35,12],[36,0,36,12],[37,0,37,12],[38,0,38,12],[39,0,39,12],[40,0,40,12],[41,0,41,12],[42,0,42,12],[43,0,43,12],[44,0,44,12],[45,0,45,12],[46,0,46,12]]}
[]
[{"$nulls":9},"ANNEXURE A3"]
{"$rows_empty":11}
["PRICING SUBMISSION"]
[]
[]
["RFP NO:",{"$nulls":3},"SCMU8-24/25-0050"]
[]
["RFP NAME:",{"$nulls":3},"TRAVEL MANAGEMENT SERVICES FOR THE OFFICE OF THE TOP MANAGEMENT FOR A PERIOD OF 36 MONTHS"]
[]
["BIDDER NAME"]
[]
[]
["PRICE INSTRUCTIONS"]
[]
["1.  STRUCTURE OF THE TENDER"]
["This spreadsheet for SCMU8-24/25-0050 contains the financial response templates for the bid. The bid pricing submission instructions in this document must be read in conjunction with instructions or notes embedded in the various tabs of spreadsheet (Pricing Schedule)."]
[]
["2.  GENERAL INSTRUCTIONS FOR COMPLETING THE PRICING SCHEDULE TEMPLATES"]
["2.1  Tender submission format"]
["2.1.1 Bidders must submit  a paper copy and an electronic copy of the Pricing Schedule. In the event of a discrepancy, the\n         paper copy will prevail."]
["2.1.2 Bidders must sign all paper copies of their Pricing Schedule."]
["2.1.3 Bidders must complete and submit the templates attached ,which is/are management fee offsite and\n         transactional fee model offsite"]
["2.1.4 Bidders must reference RFP/BID main document section 15.2 for current travel volumes."]
["2.2  Input spreadsheets"]
["2.2.1 The Pricing Schedule templates are contained within the one (1) Excel Workbook"]
["2.2.2 Bidders must not  make any changes to the spreadsheets or change the formatting of the Pricing Schedule."]
["2.2.3 Cells are formatted to automatically indicate South African Rands, ordinary text fields and percentages (%) where \n         applicable."]
["2.2.4 Input cells FOR BIDDERS are highlighted in  GREEN. The Bidder must complete all the relevant input cells for the bid. \n        No other cells must be changed in any way whatsoever."]
["2.2.4 Input cells FOR THE TENDERING INSTITUTION are highlighted in  ORANGE. The Tendering Institution must complete all  \n        the relevant input cells for the bid. No other cells must be changed in any way whatsoever."]
[]
[]
["2.3  Currency and VAT"]
["2.3.1 All Bidders’ pricing must be quoted in South African Rands (ZAR)."]
["2.3.3 The Pricing Schedule template is designed such that VAT (15% VAT) will be calculated on Bidders’ input pricing; therefore\n         Bidders must complete the templates with unit prices excluding VAT."]

{"sheet":"2. TRANSACTION FEE OFFSITE ","index":1,"n_rows":45,"n_cols":6,"rows_kept":45,"merged":[[0,2,2,5],[3,2,3,5],[6,2,6,5],[7,2,7,5],[8,2,8,5],[10,0,10,5],[11,0,11,2],[11,3,11,5],[33,0,33,1],[34,0,34,3],[34,4,34,5],[36,0,36,1],[36,3,36,4],[37,3,37,5],[38,3,38,5],[42,0,42,1],[42,3,42,4],[43,3,43,5],[44,3,44,5]]}
[null,null,"TEMPLATE 2: TRANSACTION FEE MODEL"]
[]
[]
[null,null,"OFF-SITE SERVICES"]
[]
[]
["RFP NO:",null,"SCMU8-24/25-0050"]
["RFP NAME:",null,"TRAVEL MANAGEMENT SERVICES FOR THE OFFICE OF THE TOP MANAGEMENT FOR A PERIOD OF 36 MONTHS"]
["BIDDER NAME"]
[]
["1.1  TRANSACTION FEES (A transaction fee model is where DRDAR pays a small transaction fee for each booking made)."]
[{"$nulls":3},"TRADITIONAL BOOKINGS"]
["ITEM","Transaction Type","Estimated Volume","Unit Price\n(excl VAT)","Unit Price\n(incl VAT)","TOTAL Price\n(incl VAT)"]
[1,"Air Travel – International",10,null,{"$f":"D14*1.14","v":0},{"$f":"E14*C14","v":0}]
[{"$f":"A14+1","v":2},"Air Travel – Regional",10,null,{"$f":"D15*1.14","v":0},{"$f":"E15*C15","v":0}]
[{"$f":"A15+1","v":3},"Air Travel – Domestic ",120,null,0,0]
[4,"Car Rental – Domestic",50,null,0,0]
[5,"Accommodation – Domestic",555,null,0,0]
[6,"Accommodation – Regional",7,null,0,0]
[7,"Accommodation – International",24,null,0,0]
[8,"Bus/Coach Bookings",10,null,0,0]
[9,"Train bookings – International",12,null,0,0]
[10,"Visa Assistance (Provision of documents and advice)",15,null,0,0]
[11,"Cancellations",10,null,0,0]
[12,"Changes to bookings",10,null,0,0]
[13,"After Hours Services",36,null,0,0]
[14,"Venues and Facilities",40,null,0,0]
[15,"Shuttle Services",17,null,0,0]
[16,"Visa and Passports",10,null,0,0]
[17,"Other (Specify)",null,null,0,0]
[18,"Other (Specify)",null,null,0,0]
[19,"Other (Specify)",null,null,0,0]
[null,"Total",{"$f":"SUM(C14:C32)","v":936},null,null,{"$f":"SUM(F14:F32)","v":0}]
["Percentage is on Traditional Booking",null,null,"Percentage Traditional",{"v":1,"d":"100.00%"},{"$f":"F33*E34","v":0}]
["PRICE THAT WILL BE USED FOR EVALUATION PURPOSES",{"$nulls":3},{"$f":"F34","v":0}]
[]
["1.2  CONFERENCE TRANSACTION FEE"]
["Item","Description","Percentage/ Fee","Comment"]
[1,"Conference Transaction Fee "]
[]
[]
[]
["1.3  GROUP BOOKING TRANSACTION FEE"]
["Item","Description","Percentage/ Fee","Comment"]
[1,"Group booking"]

{"sheet":"4. MANAGEMENT FEE OFFSITE","index":2,"n_rows":72,"n_cols":5,"rows_kept":72,"merged":[[0,3,2,4],[3,3,3,4],[6,3,6,4],[7,3,7,4],[8,3,8,4],[10,1,10,2],[10,3,10,4],[11,3,11,4],[13,1,13,3],[15,1,15,2],[39,1,39,3],[41,1,41,3],[42,1,42,2],[50,1,50,3],[52,1,52,3],[54,1,54,3],[56,1,56,3],[57,1,57,3],[58,1,58,3],[69,1,69,2]]}
[{"$nulls":3},"TEMPLATE 4: MANAGEMENT FEE MODEL"]
[]
[]
[{"$nulls":3},"OFF-SITE SERVICES"]
[]
[]
[null,"RFP NO:",null,"SCMU8-24/25-0050"]
[null,"RFP NAME:",null,{"$f":"'COVER SHEET'!$E19","v":"TRAVEL MANAGEMENT SERVICES FOR THE OFFICE OF THE TOP MANAGEMENT FOR A PERIOD OF 36 MONTHS"}]
[null,"BIDDER NAME",null,{"$f":"'COVER SHEET'!$E21","v":0}]
[]
[null,"ESTIMATED TRANSACTION VOLUMES PER ANNUM *"]
[{"$nulls":3},"See Section 15.2 of the bid document"]
[null,"1.1  MANAGEMENT FEES"]
[{"$nulls":4},"TRADITIONAL BOOKINGS"]
[null,"ITEM","Transaction Type",null,"Annual Cost\n(Excl VAT)"]
[null,"Fixed Costs (Management Fees)",null,"Estimated #"]
[null,1,"Compensation"]
[null,null,"     Receptionist"]
[null,null,"     Senior Travel Consultants"]
[null,null,"     Intermediate Travel Consultants"]
[null,null,"     Junior Travel Consultants"]
[null,null,"     Travel Manager"]
[null,null,"     Finance Manager / Accountant"]
[null,null,"     Admin Back Office (Creditors/ Debtors /\n     Finance Processors"]
[null,null,"     System Administrator"]
[null,2,"Standard Monthly Reports (3 Std Reports x 12 months)"]
[null,4,"* Communication (SMS, Email alerts, \nIndustry updates)"]
[null,6,"Technology (Software Licences)"]
[null,7,"Computing / GDS Fees"]
[null,8,"Office Leasing (if applicable)"]
[null,9,"Utility bills (phone, broadband, electricity, etc."]
[null,10,"Assocciation membership fees"]
[null,11,"Banking Services (Interest, Merchant Fees, etc.)"]
[null,12,"Other (Specify)"]
[null,13,"Other (Specify)"]
[null,14,"Other (Specify)"]
[null,15,"Other (Specify)"]
[null,16,"Other (Specify)"]
[null,17,"Profit"]
[null,"Total Fixed Annual Cost (Excl VAT)",null,null,{"$f":"SUM(E17:E39)","v":0}]
[]
[{"$nulls":4},"TRADITIONAL BOOKINGS"]
[null,"Variable Costs ",null,"Estimated #","Annual Cost\n(Excl VAT)"]
[null,1,"After-Hours (VIP/Executive Travel Consultant)\n(Estimated at 10 Calls per month",120]
[null,2,"After-Hours Call Center / Contact Number(17h00 - 8h00 Weekdays; 24 hours weekends and public holidays)\n(Estimated at 20 Calls per month",240]
[null,3,"Stationery (Estimated per annum)"]
[null,5,"Other (Specify)"]
[null,6,"Other (Specify)"]
[null,7,"Other (Specify)"]
[null,8,"Other (Specify)"]
[null,"Total Variable Annual Cost (Excl VAT)",null,null,{"$f":"SUM(E44:E50)","v":0}]
[]
[null,"TOTAL PER ANNUM (Excl VAT)",null,null,{"$f":"E40+E51","v":0}]
[]
[null,"Percentage - Traditional Booking",null,null,{"v":1,"d":"100.00%"}]
[{"$nulls":4},"Percentage Traditional"]
[null,"GRAND TOTAL PER ANNUM (Excl VAT)"]
[null,"GRAND TOTAL PER ANNUM (Incl VAT)  \n(PRICE THAT WILL BE USED FOR EVALUATION PURPOSES",null,null,{"$f":"E57*1.15","v":0}]
[null,"MONTHLY MANAGEMENT FEE (Incl VAT)",null,null,{"$f":"E58/12","v":0}]
[]
[null,null,"Cost of Additional items (per incident)","Unit Price\n(excl VAT)","Unit Price\n(incl VAT)"]
[null,1,"Courier Services",null,{"$f":"D62*1.15","v":0}]
[null,2,"Visa Services",null,{"$f":"D63*1.15","v":0}]
[null,3,"Customised Reports (per report)",null,0]
[null,4,"Other (Specify)",null,0]
[null,5,"Other (Specify)",null,0]
[null,6,"Other (Specify)",null,0]
[null,7,"Other (Specify)",null,0]
[]
[null,"1.2  CONFERENCE TRANSACTION FEE"]
[null,"Item","Description","Percentage Fee","Comment"]
[null,1,"Conference Transaction Fee (as a % of the Total turnover of the event)"]

{"sheet":"Price Declaration ","index":3,"n_rows":48,"n_cols":5,"rows_kept":48,"merged":[[7,0,7,1],[7,2,7,8],[8,0,8,1],[8,2,8,8],[9,0,9,1],[9,2,9,8],[12,0,12,8],[15,0,15,8],[16,0,16,8],[19,0,19,8],[20,0,20,1],[20,2,20,3],[20,4,20,6],[20,7,20,8],[21,0,21,8],[22,0,22,8],[27,0,27,8],[28,0,28,1],[28,2,28,3],[28,4,28,6],[28,7,28,8],[29,0,29,8],[30,0,30,8],[31,0,31,8],[32,0,32,8],[33,0,33,8],[34,0,34,8],[35,0,35,8],[36,0,36,8],[37,0,37,8],[38,0,38,2],[38,4,38,8],[39,0,39,8],[40,0,40,8],[41,0,41,8],[42,0,42,8],[43,0,43,8],[44,0,44,8],[45,0,45,8],[46,0,46,8],[47,0,47,8],[48,0,48,8]]}
{"$rows_empty":7}
["RFP NO:",null,{"$f":"'COVER SHEET'!$E$17","v":"SCMU8-24/25-0050"}]
["RFP NAME:",null,{"$f":"'COVER SHEET'!$E$19","v":"TRAVEL MANAGEMENT SERVICES FOR THE OFFICE OF THE TOP MANAGEMENT FOR A PERIOD OF 36 MONTHS"}]
["BIDDER NAME",null,{"$f":"'COVER SHEET'!$E$21","v":0}]
[]
[]
["Price Declaration"]
["Dear Sir/Madam,"]
[]
["Having read through and examined the Request For Proposal (RFP) Document, the General Conditions, The Requirement and all other Annexures to the RFP Document, we offer to provide OFF-SITE travel management service to theDRDAR at the following total amounts (including VAT)"]
[]
[]
[]
["Template 2: Transaction Fee (Off-Site)"]
[{"$f":"'[1]2. TRANSACTION FEE OFFSITE '!E53","v":0},null,"(incl. VAT)"]
["In words:"]
[]
[]
[]
[]
[]
["Template 4: Management Fee (Off-Site)"]
[{"$f":"'[1]4. MANAGEMENT FEE OFFSITE'!E63","v":0},null,"(incl. VAT)"]
["In words:"]
[]
[]
["We undertake to hold this offer open for acceptance for a period of 180 days from the date of submission of offers. We further undertake that upon final acceptance of our offer, we will commence with the provision of service when required to do so by  DRDAR"]
[]
["We understand that DRDAR is not bound to accept the lowest or any offer and that we must bear all costs which we have incurred in connection with preparing and submitting this bid."]
[]
["We hereby undertake for the period during which this bid remains open for acceptance not to divulge to any persons, other than the persons to which the bid is submitted, any information relating to the submission of this bid or the details therein except where such is necessary for the submission of this bid."]
[]
["Signature",{"$nulls":3},"Date"]
["Print name of signatory: ……………………………………………………………………………. "]
["Designation: ………………………………………………………………………………………….  "]
[]
["FOR AND ON BEHALF OF: COMPANY NAME"]
[]
["Tel No: ………………………………………."]
["Fax No: ………………………………………."]
["Cell No: ………………………………………."]
["Email:…………………………………………."]